[Event "*** MasterClass Titled Tuesday Blitz"]
[Site "Chess.com"]
[Date "2017.09.05"]
[Round "1"]
[White "dolynachess"]
[Black "GGuseinov"]
[Result "0-1"]
[WhiteElo "2399"]
[BlackElo "2701"]
[TimeControl "180+2"]
[EndTime "13:08:16 PDT"]
[Termination "GGuseinov won by checkmate"]

1. c4 {[%clk 0:02:59.6]} 1... g6 {[%clk 0:03:00.6]} 2. g3 {[%clk 0:02:54.2]}
2... Bg7 {[%clk 0:03:01.7]} 3. Bg2 {[%clk 0:02:55.7]} 3... d6 {[%clk 0:03:02.2]}
4. Nc3 {[%clk 0:02:56.7]} 4... e5 {[%clk 0:03:02.5]} 5. Rb1 {[%clk 0:02:55.6]}
5... f5 {[%clk 0:02:59.3]} 6. d3 {[%clk 0:02:56.6]} 6... Nf6 {[%clk 0:03:00.1]}
7. Bg5 {[%clk 0:02:57.6]} 7... O-O {[%clk 0:03:01]} 8. Nf3 {[%clk 0:02:56.2]}
8... h6 {[%clk 0:03:00.3]} 9. Bxf6 {[%clk 0:02:57.3]} 9... Qxf6 {[%clk
0:03:02.2]} 10. O-O {[%clk 0:02:58.4]} 10... Nc6 {[%clk 0:02:58.9]} 11. b4
{[%clk 0:02:49]} 11... g5 {[%clk 0:02:54.6]} 12. b5 {[%clk 0:02:49]} 12... Ne7
{[%clk 0:02:55.6]} 13. Nd5 {[%clk 0:02:47.4]} 13... Nxd5 {[%clk 0:02:52.4]} 14.
cxd5 {[%clk 0:02:49.3]} 14... Bd7 {[%clk 0:02:52.8]} 15. Qc2 {[%clk 0:02:48.1]}
15... Rac8 {[%clk 0:02:53.5]} 16. a4 {[%clk 0:02:44.3]} 16... h5 {[%clk
0:02:31.4]} 17. Rb4 {[%clk 0:02:35.7]} 17... Bh6 {[%clk 0:02:22.5]} 18. Rc4
{[%clk 0:02:33.8]} 18... g4 {[%clk 0:02:16.2]} 19. Nd2 {[%clk 0:02:31.9]} 19...
Bxd2 {[%clk 0:02:16.8]} 20. Qxd2 {[%clk 0:02:32.2]} 20... f4 {[%clk 0:02:18.7]}
21. Be4 {[%clk 0:02:12.1]} 21... h4 {[%clk 0:02:18.2]} 22. Qc1 {[%clk
0:02:07.3]} 22... Rf7 {[%clk 0:01:42.3]} 23. Rxc7 {[%clk 0:01:29.9]} 23... Rxc7
{[%clk 0:01:40.9]} 24. Qxc7 {[%clk 0:01:31.8]} 24... fxg3 {[%clk 0:01:42.3]} 25.
hxg3 {[%clk 0:01:30.9]} 25... hxg3 {[%clk 0:01:40.6]} 26. Qb8+ {[%clk
0:01:31.5]} 26... Rf8 {[%clk 0:01:33.1]} 27. Qxa7 {[%clk 0:01:32.2]} 27... Qh4
{[%clk 0:00:52.5]} 28. fxg3 {[%clk 0:01:31.3]} 28... Qxg3+ {[%clk 0:00:53.7]}
29. Bg2 {[%clk 0:01:30.7]} 29... Rxf1+ {[%clk 0:00:53.9]} 30. Kxf1 {[%clk
0:01:31.8]} 30... Qf4+ {[%clk 0:00:55.8]} 31. Qf2 {[%clk 0:01:19.6]} 31... Qxa4
{[%clk 0:00:52]} 32. Be4 {[%clk 0:00:50.7]} 32... Qd1+ {[%clk 0:00:43.3]} 33.
Kg2 {[%clk 0:00:51.2]} 33... Bxb5 {[%clk 0:00:44.2]} 34. Qe3 {[%clk 0:00:45.5]}
34... Kf7 {[%clk 0:00:39.4]} 35. Kg3 {[%clk 0:00:36.4]} 35... Bd7 {[%clk
0:00:38]} 36. Qh6 {[%clk 0:00:15.6]} 36... Qg1+ {[%clk 0:00:27.5]} 37. Bg2
{[%clk 0:00:16.6]} 37... Qe1+ {[%clk 0:00:28.6]} 38. Kh2 {[%clk 0:00:17]} 38...
g3# {[%clk 0:00:30]} 0-1

[Event "*** MasterClass Titled Tuesday Blitz"]
[Site "Chess.com"]
[Date "2017.09.05"]
[Round "1"]
[White "hypert"]
[Black "Yaacovn"]
[Result "0-1"]
[WhiteElo "2332"]
[BlackElo "2625"]
[TimeControl "180+2"]
[EndTime "13:08:22 PDT"]
[Termination "Yaacovn won by resignation"]

1. d4 {[%clk 0:02:58.4]} 1... Nf6 {[%clk 0:03:00.8]} 2. c4 {[%clk 0:02:58.9]}
2... e5 {[%clk 0:03:01]} 3. dxe5 {[%clk 0:02:58.9]} 3... Ne4 {[%clk 0:03:01.9]}
4. Nf3 {[%clk 0:02:59.1]} 4... Nc6 {[%clk 0:03:02.6]} 5. e3 {[%clk 0:02:59.8]}
5... d6 {[%clk 0:03:03.1]} 6. exd6 {[%clk 0:02:58.9]} 6... Bxd6 {[%clk
0:03:03.5]} 7. Be2 {[%clk 0:02:59.5]} 7... Bf5 {[%clk 0:03:03.7]} 8. O-O {[%clk
0:02:58.6]} 8... Qf6 {[%clk 0:03:04.3]} 9. Nbd2 {[%clk 0:02:56.2]} 9... O-O-O
{[%clk 0:03:04.6]} 10. Nxe4 {[%clk 0:02:53]} 10... Bxe4 {[%clk 0:03:05]} 11. Nd2
{[%clk 0:02:48]} 11... Qg6 {[%clk 0:02:53.2]} 12. f3 {[%clk 0:02:36.5]} 12...
Qh6 {[%clk 0:02:44.3]} 13. f4 {[%clk 0:02:29.2]} 13... Bc5 {[%clk 0:02:39.3]}
14. Nxe4 {[%clk 0:02:10.2]} 14... Rxd1 {[%clk 0:02:37.3]} 15. Rxd1 {[%clk
0:02:12.1]} 15... Be7 {[%clk 0:02:27.9]} 16. b3 {[%clk 0:02:08.5]} 16... Re8
{[%clk 0:02:24.9]} 17. Ng3 {[%clk 0:02:02.6]} 17... Bc5 {[%clk 0:02:17.8]} 18.
Bg4+ {[%clk 0:01:52.3]} 18... Kb8 {[%clk 0:02:18]} 19. Bd7 {[%clk 0:01:15.1]}
19... Rd8 {[%clk 0:02:12.1]} 20. Ne4 {[%clk 0:00:59.4]} 20... Be7 {[%clk
0:02:05.9]} 21. Bb2 {[%clk 0:00:58.3]} 21... Rxd7 {[%clk 0:01:59.1]} 22. Rxd7
{[%clk 0:00:58.2]} 22... Qe6 {[%clk 0:01:59.4]} 23. Rxe7 {[%clk 0:00:40]} 23...
Qxe7 {[%clk 0:01:58.8]} 24. Nf2 {[%clk 0:00:39.5]} 24... Qxe3 {[%clk 0:01:48.3]}
25. Bxg7 {[%clk 0:00:40]} 25... Qxf4 {[%clk 0:01:47.4]} 26. Re1 {[%clk
0:00:39.5]} 26... b6 {[%clk 0:01:44.5]} 27. Bc3 {[%clk 0:00:40.4]} 27... a5
{[%clk 0:01:42.5]} 28. h3 {[%clk 0:00:40]} 28... Qf5 {[%clk 0:01:43.2]} 29. Re4
{[%clk 0:00:40.3]} 29... Nb4 {[%clk 0:01:41.7]} 30. Bxb4 {[%clk 0:00:37.5]}
30... axb4 {[%clk 0:01:42.3]} 31. Re2 {[%clk 0:00:37.1]} 31... Kb7 {[%clk
0:01:41.3]} 32. g4 {[%clk 0:00:36.6]} 32... Qf3 {[%clk 0:01:40.9]} 33. Re7
{[%clk 0:00:37.2]} 33... h5 {[%clk 0:01:34.3]} 34. gxh5 {[%clk 0:00:37.4]} 34...
Qxh5 {[%clk 0:01:34.3]} 35. Kf1 {[%clk 0:00:38.4]} 35... Qg6 {[%clk 0:01:33.5]}
36. Re1 {[%clk 0:00:38]} 36... Qf5 {[%clk 0:01:32.6]} 37. Re2 {[%clk 0:00:39.3]}
37... Qf3 {[%clk 0:01:32.3]} 38. Ke1 {[%clk 0:00:38.7]} 38... f5 {[%clk
0:01:32.8]} 39. Kd2 {[%clk 0:00:39.4]} 39... f4 {[%clk 0:01:33.4]} 40. Nd3
{[%clk 0:00:39]} 40... Qxh3 {[%clk 0:01:31.5]} 41. Nxf4 {[%clk 0:00:39.7]} 41...
Qc3+ {[%clk 0:01:31.3]} 42. Kd1 {[%clk 0:00:40.9]} 42... Qd4+ {[%clk 0:01:31.9]}
43. Rd2 {[%clk 0:00:40.7]} 43... Qxf4 {[%clk 0:01:32.5]} 44. Kc2 {[%clk
0:00:42.6]} 44... Qe4+ {[%clk 0:01:33.1]} 45. Kb2 {[%clk 0:00:43]} 45... Qe3
{[%clk 0:01:33.8]} 46. Rc2 {[%clk 0:00:43.7]} 46... Kc6 {[%clk 0:01:33.8]} 47.
Kb1 {[%clk 0:00:45]} 47... Kc5 {[%clk 0:01:34]} 48. Kb2 {[%clk 0:00:45.1]} 48...
Kd4 {[%clk 0:01:34.2]} 49. Rc1 {[%clk 0:00:46.2]} 49... Qe2+ {[%clk 0:01:33.9]}
50. Kb1 {[%clk 0:00:46]} 50... Kd3 {[%clk 0:01:33]} 51. c5 {[%clk 0:00:47.2]}
51... b5 {[%clk 0:01:27]} 52. c6 {[%clk 0:00:47.7]} 52... Qh5 {[%clk 0:01:23.5]}
53. Rd1+ {[%clk 0:00:46.8]} 53... Qxd1+ {[%clk 0:01:23.3]} 0-1

[Event "*** MasterClass Titled Tuesday Blitz"]
[Site "Chess.com"]
[Date "2017.09.05"]
[Round "1"]
[White "nonscitis"]
[Black "aa175"]
[Result "1-0"]
[WhiteElo "2420"]
[BlackElo "1833"]
[TimeControl "180+2"]
[EndTime "13:08:31 PDT"]
[Termination "nonscitis won on time"]

1. e4 {[%clk 0:02:56.7]} 1... e5 {[%clk 0:02:59.5]} 2. Nf3 {[%clk 0:02:50.1]}
2... Nc6 {[%clk 0:02:59.4]} 3. Bb5 {[%clk 0:02:48.3]} 3... Nf6 {[%clk
0:02:57.3]} 4. O-O {[%clk 0:02:43.5]} 4... Bc5 {[%clk 0:02:56]} 5. c3 {[%clk
0:02:39.8]} 5... O-O {[%clk 0:02:49.5]} 6. d4 {[%clk 0:02:38.8]} 6... exd4
{[%clk 0:02:46.4]} 7. cxd4 {[%clk 0:02:39.2]} 7... Bb6 {[%clk 0:02:46.2]} 8. e5
{[%clk 0:02:34.9]} 8... Nd5 {[%clk 0:02:45.8]} 9. Nc3 {[%clk 0:02:35.6]} 9...
Nxc3 {[%clk 0:02:45.7]} 10. bxc3 {[%clk 0:02:37.5]} 10... d5 {[%clk 0:02:31.9]}
11. h3 {[%clk 0:02:32.1]} 11... Be6 {[%clk 0:02:29.2]} 12. Re1 {[%clk
0:02:31.6]} 12... h6 {[%clk 0:02:29]} 13. Bd3 {[%clk 0:02:18.4]} 13... Ne7
{[%clk 0:02:28.7]} 14. Bf4 {[%clk 0:02:15.9]} 14... Qd7 {[%clk 0:02:26.2]} 15.
Bg3 {[%clk 0:02:16.3]} 15... Bf5 {[%clk 0:02:21]} 16. Nh4 {[%clk 0:02:14.5]}
16... Bxd3 {[%clk 0:02:20.1]} 17. Qxd3 {[%clk 0:02:16.4]} 17... a6 {[%clk
0:02:09.8]} 18. Re2 {[%clk 0:02:12.4]} 18... Qb5 {[%clk 0:02:01.7]} 19. Qc2
{[%clk 0:01:59.6]} 19... Qc6 {[%clk 0:01:44.2]} 20. Rae1 {[%clk 0:01:58.2]}
20... Rfe8 {[%clk 0:01:35.9]} 21. e6 {[%clk 0:01:59.3]} 21... f6 {[%clk
0:01:33.3]} 22. Qd3 {[%clk 0:01:27.7]} 22... Qb5 {[%clk 0:01:25.7]} 23. Qf3
{[%clk 0:01:28]} 23... Ba5 {[%clk 0:01:13.1]} 24. Bf4 {[%clk 0:01:11.9]} 24...
g5 {[%clk 0:00:45.4]} 25. Bxg5 {[%clk 0:01:04.4]} 25... fxg5 {[%clk 0:00:36.7]}
26. Qf7+ {[%clk 0:01:04.2]} 26... Kh8 {[%clk 0:00:37.5]} 27. Re5 {[%clk
0:00:45.3]} 27... Bxc3 {[%clk 0:00:21.2]} 28. Rxg5 {[%clk 0:00:34.7]} 28... hxg5
{[%clk 0:00:19.1]} 29. Qh5+ {[%clk 0:00:35.1]} 29... Kg7 {[%clk 0:00:17.6]} 30.
Qxg5+ {[%clk 0:00:36.2]} 30... Kh7 {[%clk 0:00:17.3]} 31. Qh5+ {[%clk
0:00:19.8]} 31... Kg7 {[%clk 0:00:13.3]} 32. Qf7+ {[%clk 0:00:20.6]} 32... Kh8
{[%clk 0:00:12.7]} 33. Re5 {[%clk 0:00:20.4]} 33... Qb1+ {[%clk 0:00:05.8]} 34.
Kh2 {[%clk 0:00:21]} 1-0

[Event "*** MasterClass Titled Tuesday Blitz"]
[Site "Chess.com"]
[Date "2017.09.05"]
[Round "1"]
[White "Fy_Rakotomaharo"]
[Black "Scott-fox21"]
[Result "1-0"]
[WhiteElo "2480"]
[BlackElo "2181"]
[TimeControl "180+2"]
[EndTime "13:08:33 PDT"]
[Termination "Fy_Rakotomaharo won by resignation"]

1. d4 {[%clk 0:03:01.2]} 1... d5 {[%clk 0:03:00.4]} 2. c4 {[%clk 0:03:01.2]}
2... e6 {[%clk 0:02:59]} 3. Nc3 {[%clk 0:03:02.5]} 3... c6 {[%clk 0:02:55.1]} 4.
e3 {[%clk 0:03:02.7]} 4... a6 {[%clk 0:02:49.8]} 5. Qc2 {[%clk 0:03:03]} 5... c5
{[%clk 0:02:47.3]} 6. cxd5 {[%clk 0:02:58.7]} 6... exd5 {[%clk 0:02:43.5]} 7.
Nf3 {[%clk 0:03:00]} 7... Nc6 {[%clk 0:02:42.9]} 8. Ne5 {[%clk 0:03:01.3]} 8...
cxd4 {[%clk 0:02:32.9]} 9. Nxc6 {[%clk 0:03:02]} 9... bxc6 {[%clk 0:02:27.5]}
10. exd4 {[%clk 0:03:03.2]} 10... Nf6 {[%clk 0:02:25.6]} 11. Bd3 {[%clk
0:02:58]} 11... Bd6 {[%clk 0:02:20.6]} 12. O-O {[%clk 0:02:55.1]} 12... O-O
{[%clk 0:02:09.9]} 13. h3 {[%clk 0:02:51.7]} 13... h6 {[%clk 0:02:06.7]} 14. Na4
{[%clk 0:02:42.7]} 14... Qe7 {[%clk 0:01:41.4]} 15. Bd2 {[%clk 0:02:36.3]} 15...
Bd7 {[%clk 0:01:41.4]} 16. Rfe1 {[%clk 0:02:36.3]} 16... Qd8 {[%clk 0:01:40.2]}
17. b4 {[%clk 0:02:28]} 17... Qb8 {[%clk 0:01:36.4]} 18. Nc5 {[%clk 0:02:18.9]}
18... Bxc5 {[%clk 0:01:20.3]} 19. bxc5 {[%clk 0:02:18.8]} 19... Re8 {[%clk
0:01:16.8]} 20. Rxe8+ {[%clk 0:02:06]} 20... Qxe8 {[%clk 0:01:16.1]} 21. Re1
{[%clk 0:02:07]} 21... Qb8 {[%clk 0:01:02.8]} 22. Ba5 {[%clk 0:02:03.9]} 22...
Qf4 {[%clk 0:00:59]} 23. Bc3 {[%clk 0:02:00]} 23... Qg5 {[%clk 0:00:56.6]} 24.
Qd2 {[%clk 0:01:59.1]} 24... Qh4 {[%clk 0:00:37.1]} 25. Re3 {[%clk 0:01:57.4]}
25... Qg5 {[%clk 0:00:23.9]} 26. Qe2 {[%clk 0:01:47.3]} 26... a5 {[%clk
0:00:20.2]} 27. a4 {[%clk 0:01:40.7]} 27... Be6 {[%clk 0:00:21.1]} 28. Bd2
{[%clk 0:01:38.7]} 28... Qh5 {[%clk 0:00:20.6]} 29. Qxh5 {[%clk 0:01:31.5]}
29... Nxh5 {[%clk 0:00:22.6]} 30. Re1 {[%clk 0:01:33]} 30... Nf6 {[%clk
0:00:23.3]} 31. Rb1 {[%clk 0:01:33.2]} 31... Nd7 {[%clk 0:00:23.3]} 32. Rb7
{[%clk 0:01:27.3]} 32... Nf6 {[%clk 0:00:23.8]} 33. f3 {[%clk 0:01:25]} 33...
Bd7 {[%clk 0:00:23.8]} 34. g4 {[%clk 0:01:24.4]} 34... Kf8 {[%clk 0:00:24.7]}
35. h4 {[%clk 0:01:24.8]} 35... Ke8 {[%clk 0:00:25.5]} 36. Bf4 {[%clk
0:01:18.6]} 36... Kd8 {[%clk 0:00:25]} 37. Be5 {[%clk 0:01:18.1]} 37... Kc8
{[%clk 0:00:25.4]} 38. Rb6 {[%clk 0:01:16.2]} 38... Ne8 {[%clk 0:00:24.4]} 39.
g5 {[%clk 0:01:12.2]} 39... hxg5 {[%clk 0:00:24.4]} 40. hxg5 {[%clk 0:01:14.1]}
40... f6 {[%clk 0:00:25.8]} 41. Bf4 {[%clk 0:01:14.2]} 41... Nc7 {[%clk
0:00:24.1]} 42. gxf6 {[%clk 0:00:57.2]} 42... gxf6 {[%clk 0:00:26.1]} 43. Kf2
{[%clk 0:00:58.5]} 43... Ne6 {[%clk 0:00:26.9]} 44. Be3 {[%clk 0:01:00.4]} 44...
Kc7 {[%clk 0:00:26.4]} 45. f4 {[%clk 0:01:00.4]} 45... Rh8 {[%clk 0:00:26.4]}
46. f5 {[%clk 0:01:01.2]} 46... Ng7 {[%clk 0:00:26.6]} 47. Bf4+ {[%clk
0:01:02.5]} 47... Kd8 {[%clk 0:00:24.6]} 48. Rb8+ {[%clk 0:01:02]} 48... Bc8
{[%clk 0:00:25.4]} 49. Ba6 {[%clk 0:00:59.4]} 49... Kd7 {[%clk 0:00:25.1]} 50.
Bxc8+ {[%clk 0:01:00.1]} 50... Rxc8 {[%clk 0:00:24.9]} 51. Rb7+ {[%clk
0:01:01.7]} 1-0

[Event "*** MasterClass Titled Tuesday Blitz"]
[Site "Chess.com"]
[Date "2017.09.05"]
[Round "1"]
[White "tomsishere"]
[Black "Kirill_Klukin"]
[Result "0-1"]
[WhiteElo "2241"]
[BlackElo "2518"]
[TimeControl "180+2"]
[EndTime "13:08:43 PDT"]
[Termination "Kirill_Klukin won by resignation"]

1. d4 {[%clk 0:02:59.4]} 1... Nf6 {[%clk 0:03:00.6]} 2. c4 {[%clk 0:03:00.1]}
2... g6 {[%clk 0:03:01.9]} 3. f3 {[%clk 0:03:00.4]} 3... Bg7 {[%clk 0:03:02.4]}
4. e4 {[%clk 0:03:01]} 4... d6 {[%clk 0:03:03.2]} 5. Ne2 {[%clk 0:03:02.4]} 5...
O-O {[%clk 0:03:04]} 6. Nbc3 {[%clk 0:03:03.9]} 6... a6 {[%clk 0:03:05.1]} 7.
Be3 {[%clk 0:03:04.3]} 7... Nc6 {[%clk 0:03:06.3]} 8. Qd2 {[%clk 0:03:03.2]}
8... Na5 {[%clk 0:03:06.6]} 9. Ng3 {[%clk 0:03:00.1]} 9... b5 {[%clk 0:03:07.6]}
10. h4 {[%clk 0:03:00.2]} 10... h5 {[%clk 0:02:32.3]} 11. cxb5 {[%clk 0:02:40]}
11... axb5 {[%clk 0:02:31.6]} 12. Bxb5 {[%clk 0:02:40.8]} 12... Nb3 {[%clk
0:02:31.9]} 13. Qd1 {[%clk 0:02:28.5]} 13... Nxa1 {[%clk 0:02:32.1]} 14. Qxa1
{[%clk 0:02:30]} 14... Ba6 {[%clk 0:02:33]} 15. Bxa6 {[%clk 0:02:27.2]} 15...
Rxa6 {[%clk 0:02:34.9]} 16. Qc1 {[%clk 0:02:15.4]} 16... c6 {[%clk 0:02:33.6]}
17. Bh6 {[%clk 0:02:14.2]} 17... Qa5 {[%clk 0:02:30]} 18. Rh3 {[%clk 0:01:59.7]}
18... Rb8 {[%clk 0:02:29.8]} 19. Nf5 {[%clk 0:01:23.5]} 19... gxf5 {[%clk
0:01:07.3]} 20. Rg3 {[%clk 0:01:22.7]} 20... Ng4 {[%clk 0:01:05.4]} 21. Qg5
{[%clk 0:01:19.6]} 21... Kf8 {[%clk 0:00:55.3]} 22. Qxg7+ {[%clk 0:01:20.2]}
22... Ke8 {[%clk 0:00:56.7]} 23. Qf8+ {[%clk 0:01:19]} 23... Kd7 {[%clk
0:00:57.5]} 24. Qxb8 {[%clk 0:01:17.3]} 24... Rb6 {[%clk 0:00:49.2]} 25. Qh8
{[%clk 0:00:52]} 25... Nxh6 {[%clk 0:00:40.2]} 26. Qxh6 {[%clk 0:00:50.7]} 26...
Rxb2 {[%clk 0:00:41.7]} 27. Qc1 {[%clk 0:00:40.5]} 27... Rxa2 {[%clk 0:00:37.4]}
28. Kf1 {[%clk 0:00:31.3]} 28... Ra1 {[%clk 0:00:37.4]} 29. Nb1 {[%clk
0:00:30.5]} 29... Qb5+ {[%clk 0:00:38.6]} 30. Kf2 {[%clk 0:00:27.9]} 30... Rxb1
{[%clk 0:00:39.9]} 31. Qa3 {[%clk 0:00:28.4]} 31... f4 {[%clk 0:00:27.8]} 32.
Qa7+ {[%clk 0:00:21.3]} 32... Ke6 {[%clk 0:00:26.7]} 33. Qa2+ {[%clk 0:00:19.3]}
33... d5 {[%clk 0:00:18]} 34. exd5+ {[%clk 0:00:18.1]} 34... cxd5 {[%clk
0:00:19.3]} 35. Qe2+ {[%clk 0:00:03.8]} 35... Qxe2+ {[%clk 0:00:20]} 36. Kxe2
{[%clk 0:00:05.2]} 36... fxg3 {[%clk 0:00:21.9]} 0-1

[Event "*** MasterClass Titled Tuesday Blitz"]
[Site "Chess.com"]
[Date "2017.09.05"]
[Round "1"]
[White "Tarlev_Konstantin"]
[Black "livestrong04"]
[Result "1-0"]
[WhiteElo "2632"]
[BlackElo "2336"]
[TimeControl "180+2"]
[EndTime "13:08:45 PDT"]
[Termination "Tarlev_Konstantin won by resignation"]

1. e4 {[%clk 0:03:01.9]} 1... c6 {[%clk 0:02:54.1]} 2. Nf3 {[%clk 0:03:02.6]}
2... d5 {[%clk 0:02:55.2]} 3. Nc3 {[%clk 0:03:04.2]} 3... dxe4 {[%clk
0:02:54.7]} 4. Nxe4 {[%clk 0:03:04.8]} 4... Nf6 {[%clk 0:02:55.8]} 5. Nxf6+
{[%clk 0:03:05.8]} 5... gxf6 {[%clk 0:02:57.4]} 6. g3 {[%clk 0:03:05.9]} 6...
Rg8 {[%clk 0:02:59]} 7. Bg2 {[%clk 0:03:07.2]} 7... Bg4 {[%clk 0:02:59.7]} 8.
O-O {[%clk 0:03:08.1]} 8... Nd7 {[%clk 0:03:01.1]} 9. Re1 {[%clk 0:03:09.2]}
9... Qc7 {[%clk 0:03:02.7]} 10. d4 {[%clk 0:03:09.9]} 10... h5 {[%clk
0:03:02.9]} 11. Bf4 {[%clk 0:03:10.2]} 11... Qb6 {[%clk 0:02:59.9]} 12. c3
{[%clk 0:03:11.3]} 12... h4 {[%clk 0:02:59.3]} 13. Qb3 {[%clk 0:03:08.9]} 13...
hxg3 {[%clk 0:02:59.3]} 14. fxg3 {[%clk 0:03:08.2]} 14... O-O-O {[%clk
0:02:59.3]} 15. Nd2 {[%clk 0:03:05.9]} 15... e6 {[%clk 0:02:52.1]} 16. Nc4
{[%clk 0:03:05.9]} 16... Qxb3 {[%clk 0:02:52.3]} 17. axb3 {[%clk 0:03:07.5]}
17... a6 {[%clk 0:02:46.7]} 18. Nd6+ {[%clk 0:03:07.5]} 18... Bxd6 {[%clk
0:02:46.8]} 19. Bxd6 {[%clk 0:03:09.1]} 19... f5 {[%clk 0:02:41.5]} 20. c4
{[%clk 0:03:00.9]} 20... Nb6 {[%clk 0:02:38.1]} 21. Bc5 {[%clk 0:03:01.5]} 21...
Kc7 {[%clk 0:02:32.3]} 22. Kf2 {[%clk 0:02:56.6]} 22... Nc8 {[%clk 0:02:27.1]}
23. Ke3 {[%clk 0:02:47.9]} 23... Rh8 {[%clk 0:02:26.8]} 24. Rh1 {[%clk
0:02:43.9]} 24... Nd6 {[%clk 0:02:15.9]} 25. h3 {[%clk 0:02:43.9]} 25... Bh5
{[%clk 0:02:15.7]} 26. Bb4 {[%clk 0:02:35.5]} 26... Rhg8 {[%clk 0:02:14.6]} 27.
Ba5+ {[%clk 0:02:31.7]} 27... b6 {[%clk 0:02:13.4]} 28. Be1 {[%clk 0:02:33.5]}
28... a5 {[%clk 0:02:07.2]} 29. c5 {[%clk 0:02:33.6]} 29... Nb5 {[%clk
0:01:57.5]} 30. cxb6+ {[%clk 0:02:33.8]} 30... Kb7 {[%clk 0:01:57.5]} 31. Rxa5
{[%clk 0:02:26.8]} 31... Nxd4 {[%clk 0:01:49.6]} 32. g4 {[%clk 0:02:16.3]} 32...
Bg6 {[%clk 0:01:39.5]} 33. Bc3 {[%clk 0:02:14.5]} 33... Kxb6 {[%clk 0:01:23.2]}
34. b4 {[%clk 0:01:13.1]} 34... fxg4 {[%clk 0:00:52.6]} 35. Bxd4+ {[%clk
0:01:06.9]} 35... Rxd4 {[%clk 0:00:53.1]} 36. Kxd4 {[%clk 0:01:08]} 36... Rd8+
{[%clk 0:00:53.4]} 37. Ke5 {[%clk 0:01:00.4]} 37... Rd2 {[%clk 0:00:53.1]} 38.
Rg1 {[%clk 0:00:57.9]} 38... Rxb2 {[%clk 0:00:48.1]} 39. hxg4 {[%clk 0:00:54.1]}
39... Rxb4 {[%clk 0:00:48.6]} 40. Raa1 {[%clk 0:00:51.8]} 40... Rxg4 {[%clk
0:00:47.4]} 41. Bf3 {[%clk 0:00:49]} 41... Rh4 {[%clk 0:00:43]} 42. Rh1 {[%clk
0:00:48.9]} 42... Rc4 {[%clk 0:00:41.6]} 43. Rhc1 {[%clk 0:00:45.5]} 43... Rh4
{[%clk 0:00:37.8]} 44. Rxc6+ {[%clk 0:00:46]} 44... Kb5 {[%clk 0:00:38.3]} 45.
Ra8 {[%clk 0:00:38.5]} 45... f6+ {[%clk 0:00:30.5]} 46. Kxf6 {[%clk 0:00:34.7]}
46... Rf4+ {[%clk 0:00:31]} 47. Kxg6 {[%clk 0:00:35.7]} 47... Rxf3 {[%clk
0:00:32.3]} 48. Rxe6 {[%clk 0:00:34.4]} 48... Rf8 {[%clk 0:00:31.7]} 49. Rxf8
{[%clk 0:00:34.4]} 1-0

[Event "*** MasterClass Titled Tuesday Blitz"]
[Site "Chess.com"]
[Date "2017.09.05"]
[Round "1"]
[White "Witik"]
[Black "cheese111"]
[Result "0-1"]
[WhiteElo "2508"]
[BlackElo "2290"]
[TimeControl "180+2"]
[EndTime "13:08:49 PDT"]
[Termination "cheese111 won by resignation"]

1. d4 {[%clk 0:03:00.6]} 1... Nf6 {[%clk 0:02:59.6]} 2. Bf4 {[%clk 0:03:00.8]}
2... g6 {[%clk 0:03:00]} 3. Nc3 {[%clk 0:03:00]} 3... Bg7 {[%clk 0:03:01.2]} 4.
e4 {[%clk 0:03:00.2]} 4... d5 {[%clk 0:03:02.4]} 5. e5 {[%clk 0:02:56.5]} 5...
Ne4 {[%clk 0:03:03.5]} 6. Bd3 {[%clk 0:02:55.5]} 6... Nxc3 {[%clk 0:02:31.8]} 7.
bxc3 {[%clk 0:02:57.4]} 7... c5 {[%clk 0:02:33.1]} 8. Nf3 {[%clk 0:02:52]} 8...
Qa5 {[%clk 0:02:31.4]} 9. O-O {[%clk 0:02:47.3]} 9... Nc6 {[%clk 0:02:06.3]} 10.
Re1 {[%clk 0:02:44.9]} 10... Bg4 {[%clk 0:01:53.3]} 11. h3 {[%clk 0:02:40.4]}
11... Bxf3 {[%clk 0:01:54.5]} 12. Qxf3 {[%clk 0:02:41.9]} 12... cxd4 {[%clk
0:01:55.9]} 13. e6 {[%clk 0:02:38]} 13... O-O {[%clk 0:01:37.3]} 14. c4 {[%clk
0:02:32.7]} 14... fxe6 {[%clk 0:01:31.6]} 15. Qg4 {[%clk 0:02:32.3]} 15... e5
{[%clk 0:01:29.4]} 16. Bg3 {[%clk 0:02:25.7]} 16... e4 {[%clk 0:01:25.1]} 17.
Bf1 {[%clk 0:02:22.2]} 17... d3 {[%clk 0:01:17.4]} 18. cxd5 {[%clk 0:02:21.1]}
18... Bxa1 {[%clk 0:01:17]} 19. Rxa1 {[%clk 0:02:21.9]} 19... Qxd5 {[%clk
0:01:17.4]} 20. cxd3 {[%clk 0:02:19.7]} 20... exd3 {[%clk 0:01:18.2]} 21. Rd1
{[%clk 0:02:20.2]} 21... Ne5 {[%clk 0:01:10.1]} 22. Qa4 {[%clk 0:02:19.9]} 22...
Rad8 {[%clk 0:00:58]} 23. Kh2 {[%clk 0:02:16.4]} 23... d2 {[%clk 0:00:32.1]} 24.
Qxa7 {[%clk 0:02:13.7]} 24... Nc4 {[%clk 0:00:25.2]} 25. Bxc4 {[%clk 0:02:03]}
25... Qxc4 {[%clk 0:00:27.2]} 26. Qxb7 {[%clk 0:01:59.1]} 26... Qc2 {[%clk
0:00:22.5]} 27. Qb3+ {[%clk 0:01:45.8]} 27... Qxb3 {[%clk 0:00:21.2]} 28. axb3
{[%clk 0:01:46.3]} 28... Rd3 {[%clk 0:00:21.5]} 29. Kg1 {[%clk 0:01:43.8]} 29...
Rfd8 {[%clk 0:00:18.7]} 30. Bf4 {[%clk 0:01:37.3]} 30... Rxb3 {[%clk 0:00:11.2]}
31. Rxd2 {[%clk 0:01:38.2]} 31... Rxd2 {[%clk 0:00:11.7]} 32. Bxd2 {[%clk
0:01:38.7]} 32... Kf7 {[%clk 0:00:13.3]} 33. Be3 {[%clk 0:01:37.4]} 33... Ke6
{[%clk 0:00:15.3]} 34. Kh2 {[%clk 0:01:35.9]} 34... Kf5 {[%clk 0:00:16.3]} 35.
Bd2 {[%clk 0:01:32.3]} 35... Ke4 {[%clk 0:00:16.6]} 36. Bg5 {[%clk 0:01:30.5]}
36... e6 {[%clk 0:00:17.2]} 37. Bh6 {[%clk 0:01:29.9]} 37... Rd3 {[%clk
0:00:16.1]} 38. Bg5 {[%clk 0:01:28.5]} 38... Kd5 {[%clk 0:00:15.5]} 39. Bf6
{[%clk 0:01:27.8]} 39... Kc4 {[%clk 0:00:16.6]} 40. Bg5 {[%clk 0:01:27]} 40...
Kb3 {[%clk 0:00:17.6]} 41. Be3 {[%clk 0:01:26.1]} 41... Kc2 {[%clk 0:00:17]} 42.
Bg5 {[%clk 0:01:25.4]} 42... Kd1 {[%clk 0:00:17.9]} 43. f3 {[%clk 0:01:24.7]}
43... Ke2 {[%clk 0:00:17.9]} 44. Kg1 {[%clk 0:01:22.7]} 44... Rd1+ {[%clk
0:00:18.1]} 45. Kh2 {[%clk 0:01:23.9]} 45... Kf1 {[%clk 0:00:20.1]} 46. h4
{[%clk 0:01:21.5]} 46... Re1 {[%clk 0:00:19.3]} 47. Kg3 {[%clk 0:01:20.6]} 47...
Re2 {[%clk 0:00:20.4]} 48. f4 {[%clk 0:01:21.3]} 48... Rxg2+ {[%clk 0:00:21]}
49. Kf3 {[%clk 0:01:21.9]} 49... Rf2+ {[%clk 0:00:22.4]} 50. Ke3 {[%clk
0:01:20.2]} 50... Re2+ {[%clk 0:00:23.7]} 51. Kf3 {[%clk 0:01:19.8]} 51... Rb2
{[%clk 0:00:22.9]} 52. Ke4 {[%clk 0:01:19]} 52... Rb5 {[%clk 0:00:23.8]} 53. Kf3
{[%clk 0:01:17.1]} 53... Ke1 {[%clk 0:00:24]} 54. Be7 {[%clk 0:01:16.5]} 54...
Rf5 {[%clk 0:00:24.4]} 55. Ke4 {[%clk 0:01:13.7]} 55... Kf2 {[%clk 0:00:24.3]}
56. Bd8 {[%clk 0:01:13]} 56... Kg3 {[%clk 0:00:24.5]} 57. Ke3 {[%clk 0:01:11.3]}
57... Kg4 {[%clk 0:00:23.9]} 58. Bg5 {[%clk 0:01:09.9]} 58... e5 {[%clk
0:00:25.2]} 0-1